{"text_format":"1","workbook":"xlsx","n_sheets":2,"sheets":["學校填寫","setup"],"not_rendered":{"charts":0,"images":0,"macros":1,"external_links":0,"defined_names":81,"comments":0,"pivot_tables":0},"unopened":[],"bounds":{"document_bytes":16777216,"sheet_cells":100000,"rows_first":2000,"rows_last":500,"rows_between":2000,"halvings":0,"cell_chars":16384,"cell_head_chars":4096},"cells_cut":0,"cells_raw":0,"read":"whole","date_system":"1900"}

{"sheet":"學校填寫","index":0,"n_rows":102,"n_cols":18,"rows_kept":102,"cut":false,"hidden":false,"merged":[[0,0,0,14]]}
[{"$f":"sTitle","v":"新北市政府發給績優運動選手訓練補助金簽領清冊"}]
["公私立","學校","競賽種類","賽事名稱","組別","項目","姓名","身分證","戶籍地址\n(須在新北市)","名次","下場\n人數","撥發\n基準","核定","不通過理由","合計","規條","不可刪除","領取簽名"]
[null,null,null,null,null,null,null,null,null,null,{"$f":"IF(ISERROR(OFFSET(INDIRECT(Q3),MATCH(F3,INDIRECT(Q3),0)-1,1,1,1)),\"\",OFFSET(INDIRECT(Q3),MATCH(F3,INDIRECT(Q3),0)-1,1,1,1))","v":""},{"$f":"IF(ISERROR(IF(OFFSET(名次,MATCH(J3,名次,0)-1,1,1,1)<=3,OFFSET(條規,MATCH(P3,條規,0)-1,OFFSET(名次,MATCH(J3,名次,0)-1,1,1,1),1,1),OFFSET(條規,MATCH(P3,條規,0)-1,OFFSET(名次,MATCH(J3,名次,0)-1,1,1,1)+6,1,1))),\"\",IF(OFFSET(名次,MATCH(J3,名次,0)-1,1,1,1)<=3,OFFSET(條規,MATCH(P3,條規,0)-1,OFFSET(名次,MATCH(J3,名次,0)-1,1,1,1),1,1),OFFSET(條規,MATCH(P3,條規,0)-1,OFFSET(名次,MATCH(J3,名次,0)-1,1,1,1)+6,1,1)))","v":""},null,null,{"$f":"IF(J3=\"\",\"\",IF(M3=\"N\",\"\",L3*1))","v":""},{"$f":"IF(ISERROR(OFFSET(INDIRECT(Q3),MATCH(F3,INDIRECT(Q3),0)-1,2,1,1)),\"\",OFFSET(INDIRECT(Q3),MATCH(F3,INDIRECT(Q3),0)-1,2,1,1))","v":""},{"$f":"C3&\"項目\"","v":"項目"}]
[null,null,null,null,null,null,null,null,null,null,{"$f":"IF(ISERROR(OFFSET(INDIRECT(Q4),MATCH(F4,INDIRECT(Q4),0)-1,1,1,1)),\"\",OFFSET(INDIRECT(Q4),MATCH(F4,INDIRECT(Q4),0)-1,1,1,1))","v":""},{"$f":"IF(ISERROR(IF(OFFSET(名次,MATCH(J4,名次,0)-1,1,1,1)<=3,OFFSET(條規,MATCH(P4,條規,0)-1,OFFSET(名次,MATCH(J4,名次,0)-1,1,1,1),1,1),OFFSET(條規,MATCH(P4,條規,0)-1,OFFSET(名次,MATCH(J4,名次,0)-1,1,1,1)+6,1,1))),\"\",IF(OFFSET(名次,MATCH(J4,名次,0)-1,1,1,1)<=3,OFFSET(條規,MATCH(P4,條規,0)-1,OFFSET(名次,MATCH(J4,名次,0)-1,1,1,1),1,1),OFFSET(條規,MATCH(P4,條規,0)-1,OFFSET(名次,MATCH(J4,名次,0)-1,1,1,1)+6,1,1)))","v":""},null,null,{"$f":"IF(J4=\"\",\"\",IF(M4=\"N\",\"\",L4*1))","v":""},{"$f":"IF(ISERROR(OFFSET(INDIRECT(Q4),MATCH(F4,INDIRECT(Q4),0)-1,2,1,1)),\"\",OFFSET(INDIRECT(Q4),MATCH(F4,INDIRECT(Q4),0)-1,2,1,1))","v":""},{"$f":"C4&\"項目\"","v":"項目"}]
[null,null,null,null,null,null,null,null,null,null,"","",null,null,"","","項目"]
[null,null,null,null,null,null,null,null,null,null,"","",null,null,"","","項目"]
[null,null,null,null,null,null,null,null,null,null,"","",null,null,"","","項目"]
[null,null,null,null,null,null,null,null,null,null,"","",null,null,"","","項目"]
[null,null,null,null,null,null,null,null,null,null,"","",null,null,"","","項目"]
[null,null,null,null,null,null,null,null,null,null,"","",null,null,"","","項目"]
[null,null,null,null,null,null,null,null,null,null,"","",null,null,"","","項目"]
[null,null,null,null,null,null,null,null,null,null,"","",null,null,"","","項目"]
[null,null,null,null,null,null,null,null,null,null,"","",null,null,"","","項目"]
[null,null,null,null,null,null,null,null,null,null,"","",null,null,"","","項目"]
[null,null,null,null,null,null,null,null,null,null,"","",null,null,"","","項目"]
[null,null,null,null,null,null,null,null,null,null,"","",null,null,"","","項目"]
[null,null,null,null,null,null,null,null,null,null,"","",null,null,"","","項目"]
[null,null,null,null,null,null,null,null,null,null,"","",null,null,"","","項目"]
[null,null,null,null,null,null,null,null,null,null,"","",null,null,"","","項目"]
[null,null,null,null,null,null,null,null,null,null,"","",null,null,"","","項目"]
[null,null,null,null,null,null,null,null,null,null,"","",null,null,"","","項目"]
[null,null,null,null,null,null,null,null,null,null,"","",null,null,"","","項目"]
[null,null,null,null,null,null,null,null,null,null,"","",null,null,"","","項目"]
[null,null,null,null,null,null,null,null,null,null,"","",null,null,"","","項目"]
[null,null,null,null,null,null,null,null,null,null,"","",null,null,"","","項目"]
[null,null,null,null,null,null,null,null,null,null,"","",null,null,"","","項目"]
[null,null,null,null,null,null,null,null,null,null,"","",null,null,"","","項目"]
[null,null,null,null,null,null,null,null,null,null,"","",null,null,"","","項目"]
[null,null,null,null,null,null,null,null,null,null,"","",null,null,"","","項目"]
[null,null,null,null,null,null,null,null,null,null,"","",null,null,"","","項目"]
[null,null,null,null,null,null,null,null,null,null,"","",null,null,"","","項目"]
[null,null,null,null,null,null,null,null,null,null,"","",null,null,"","","項目"]
[null,null,null,null,null,null,null,null,null,null,"","",null,null,"","","項目"]
[null,null,null,null,null,null,null,null,null,null,"","",null,null,"","","項目"]
[null,null,null,null,null,null,null,null,null,null,"","",null,null,"","","項目"]
[null,null,null,null,null,null,null,null,null,null,"","",null,null,"","","項目"]
[null,null,null,null,null,null,null,null,null,null,"","",null,null,"","","項目"]
[null,null,null,null,null,null,null,null,null,null,"","",null,null,"","","項目"]
[null,null,null,null,null,null,null,null,null,null,"","",null,null,"","","項目"]
[null,null,null,null,null,null,null,null,null,null,"","",null,null,"","","項目"]
[null,null,null,null,null,null,null,null,null,null,"","",null,null,"","","項目"]
[null,null,null,null,null,null,null,null,null,null,"","",null,null,"","","項目"]
[null,null,null,null,null,null,null,null,null,null,"","",null,null,"","","項目"]
[null,null,null,null,null,null,null,null,null,null,"","",null,null,"","","項目"]
[null,null,null,null,null,null,null,null,null,null,"","",null,null,"","","項目"]
[null,null,null,null,null,null,null,null,null,null,"","",null,null,"","","項目"]
[null,null,null,null,null,null,null,null,null,null,"","",null,null,"","","項目"]
[null,null,null,null,null,null,null,null,null,null,"","",null,null,"","","項目"]
[null,null,null,null,null,null,null,null,null,null,"","",null,null,"","","項目"]
[null,null,null,null,null,null,null,null,null,null,"","",null,null,"","","項目"]
[null,null,null,null,null,null,null,null,null,null,"","",null,null,"","","項目"]
[null,null,null,null,null,null,null,null,null,null,"","",null,null,"","","項目"]
[null,null,null,null,null,null,null,null,null,null,"","",null,null,"","","項目"]
[null,null,null,null,null,null,null,null,null,null,"","",null,null,"","","項目"]
[null,null,null,null,null,null,null,null,null,null,"","",null,null,"","","項目"]
[null,null,null,null,null,null,null,null,null,null,"","",null,null,"","","項目"]
[null,null,null,null,null,null,null,null,null,null,"","",null,null,"","","項目"]
[null,null,null,null,null,null,null,null,null,null,"","",null,null,"","","項目"]
[null,null,null,null,null,null,null,null,null,null,"","",null,null,"","","項目"]
[null,null,null,null,null,null,null,null,null,null,"","",null,null,"","","項目"]
[null,null,null,null,null,null,null,null,null,null,"","",null,null,"","","項目"]
[null,null,null,null,null,null,null,null,null,null,"","",null,null,"","","項目"]
[null,null,null,null,null,null,null,null,null,null,"","",null,null,"","","項目"]
[null,null,null,null,null,null,null,null,null,null,"","",null,null,"","","項目"]
[null,null,null,null,null,null,null,null,null,null,"","",null,null,"","","項目"]
[null,null,null,null,null,null,null,null,null,null,"","",null,null,"","","項目"]
[null,null,null,null,null,null,null,null,null,null,"","",null,null,"","","項目"]
[null,null,null,null,null,null,null,null,null,null,{"$f":"IF(ISERROR(OFFSET(INDIRECT(Q68),MATCH(F68,INDIRECT(Q68),0)-1,1,1,1)),\"\",OFFSET(INDIRECT(Q68),MATCH(F68,INDIRECT(Q68),0)-1,1,1,1))","v":""},{"$f":"IF(ISERROR(IF(OFFSET(名次,MATCH(J68,名次,0)-1,1,1,1)<=3,OFFSET(條規,MATCH(P68,條規,0)-1,OFFSET(名次,MATCH(J68,名次,0)-1,1,1,1),1,1),OFFSET(條規,MATCH(P68,條規,0)-1,OFFSET(名次,MATCH(J68,名次,0)-1,1,1,1)+6,1,1))),\"\",IF(OFFSET(名次,MATCH(J68,名次,0)-1,1,1,1)<=3,OFFSET(條規,MATCH(P68,條規,0)-1,OFFSET(名次,MATCH(J68,名次,0)-1,1,1,1),1,1),OFFSET(條規,MATCH(P68,條規,0)-1,OFFSET(名次,MATCH(J68,名次,0)-1,1,1,1)+6,1,1)))","v":""},null,null,{"$f":"IF(J68=\"\",\"\",IF(M68=\"N\",\"\",L68*1))","v":""},{"$f":"IF(ISERROR(OFFSET(INDIRECT(Q68),MATCH(F68,INDIRECT(Q68),0)-1,2,1,1)),\"\",OFFSET(INDIRECT(Q68),MATCH(F68,INDIRECT(Q68),0)-1,2,1,1))","v":""},{"$f":"C68&\"項目\"","v":"項目"}]
[null,null,null,null,null,null,null,null,null,null,"","",null,null,"","","項目"]
[null,null,null,null,null,null,null,null,null,null,"","",null,null,"","","項目"]
[null,null,null,null,null,null,null,null,null,null,"","",null,null,"","","項目"]
[null,null,null,null,null,null,null,null,null,null,"","",null,null,"","","項目"]
[null,null,null,null,null,null,null,null,null,null,"","",null,null,"","","項目"]
[null,null,null,null,null,null,null,null,null,null,"","",null,null,"","","項目"]
[null,null,null,null,null,null,null,null,null,null,"","",null,null,"","","項目"]
[null,null,null,null,null,null,null,null,null,null,"","",null,null,"","","項目"]
[null,null,null,null,null,null,null,null,null,null,"","",null,null,"","","項目"]
[null,null,null,null,null,null,null,null,null,null,"","",null,null,"","","項目"]
[null,null,null,null,null,null,null,null,null,null,"","",null,null,"","","項目"]
[null,null,null,null,null,null,null,null,null,null,"","",null,null,"","","項目"]
[null,null,null,null,null,null,null,null,null,null,"","",null,null,"","","項目"]
[null,null,null,null,null,null,null,null,null,null,"","",null,null,"","","項目"]
[null,null,null,null,null,null,null,null,null,null,"","",null,null,"","","項目"]
[null,null,null,null,null,null,null,null,null,null,"","",null,null,"","","項目"]
[null,null,null,null,null,null,null,null,null,null,"","",null,null,"","","項目"]
[null,null,null,null,null,null,null,null,null,null,"","",null,null,"","","項目"]
[null,null,null,null,null,null,null,null,null,null,"","",null,null,"","","項目"]
[null,null,null,null,null,null,null,null,null,null,"","",null,null,"","","項目"]
[null,null,null,null,null,null,null,null,null,null,"","",null,null,"","","項目"]
[null,null,null,null,null,null,null,null,null,null,"","",null,null,"","","項目"]
[null,null,null,null,null,null,null,null,null,null,"","",null,null,"","","項目"]
[null,null,null,null,null,null,null,null,null,null,"","",null,null,"","","項目"]
[null,null,null,null,null,null,null,null,null,null,"","",null,null,"","","項目"]
[null,null,null,null,null,null,null,null,null,null,"","",null,null,"","","項目"]
[null,null,null,null,null,null,null,null,null,null,"","",null,null,"","","項目"]
[null,null,null,null,null,null,null,null,null,null,"","",null,null,"","","項目"]
[null,null,null,null,null,null,null,null,null,null,"","",null,null,"","","項目"]
[null,null,null,null,null,null,null,null,null,null,"","",null,null,"","","項目"]
[null,null,null,null,null,null,null,null,null,null,"","",null,null,"","","項目"]
[null,null,null,null,null,null,null,null,null,null,"","",null,null,"","","項目"]
[null,null,null,null,null,null,null,null,null,null,"","",null,null,"","","項目"]
[null,null,null,null,null,null,null,null,null,null,"","",null,null,"","","項目"]

{"sheet":"setup","index":1,"n_rows":126,"n_cols":140,"rows_kept":126,"cut":false,"hidden":true,"merged":[]}
["序號","群組","分區","學校","新北市政府發給績優運動選手訓練補助金簽領清冊","組別","名次","值","種類",null,"條規","選手1","選手2","選手3","教練1","教練2","教練3","學校1","學校2","學校3","選手破大會","選手破全國","學校破大會","學校破全國",null,null,"田徑",null,null,"田徑項目","人數","條規","游泳項目","人數","條規","羽球項目","人數","條規","桌球項目","人數","條規","網球項目","人數","條規","軟式網球項目","人數","條規","排球項目","人數","條規","籃球項目","人數","條規","足球項目","人數","條規","壘球項目","人數","條規","棒球項目","人數","條規","橄欖球項目","人數","條規","手球項目","人數","條規","曲棍球項目","人數","條規","高爾夫項目","人數","條規","保齡球項目","人數","條規","划船項目","人數","條規","輕艇項目","人數","條規","帆船項目","人數","條規","自由車項目","人數","條規","體操項目","人數","條規","跆拳道項目","人數","條規","柔道項目","人數","條規","角力項目","人數","條規","空手道項目","人數","條規","拳擊項目","人數","條規","擊劍項目","人數","條規","武術項目","人數","條規","射擊項目","人數","條規","射箭項目","人數","條規","舉重項目","人數","條規","鐵人三項項目","人數","條規","攀岩項目","人數","條規","馬術項目","人數","條規","卡巴迪項目","人數","條規","木球項目","人數","條規","競速滑輪溜冰項目","人數","條規"]
[95,"高中組","七星區","中華商海",null,"高男組",1,1,"田徑",null,"#1",80400,50400,20400,20000,10000,5000,20000,10000,5000,50000,100000,0,0,null,null,"113年全國中等學校運動會",null,null,"跳高",1,"#1","50公尺自由式",1,"#1","單打賽",1,"#1","單打賽",1,"#1","單打賽",1,"#1","單打賽",1,"#1","團體賽",7,"#2","團體賽",5,"#2","11人制",11,"#2","團體賽",10,"#2","團體賽",10,"#2","7人制",7,null,"團體賽",7,null,"團體賽",11,null,"個人賽",1,"#1","個人賽",1,"#1","單人賽",1,"#1","單人賽",1,"#1","單人賽",1,"#1","個人賽",1,"#1","個人賽",1,"#1","量級賽",1,"#1","量級賽",1,"#1","量級賽",1,"#1","量級賽",1,"#1","量級賽",1,"#1","個人賽",1,"#1","個人賽",1,"#1","個人賽",1,"#1","個人賽",1,"#1","個人賽",1,"#1","標準賽分齡組",1,"#1","個人賽",1,"#1","個人賽",1,"#1","團體賽",7,"#2","個人賽",1,"#1","個人賽",1,"#1"]
[96,"高中組","三重區","三重商工",null,"高女組",2,2,"游泳",null,"#2",40800,25200,10080,10000,5000,2500,10000,5000,2500,0,0,0,0,null,null,null,null,null,"撐竿跳高",1,"#1","100公尺自由式",1,"#1","雙打賽",2,"#2","雙打賽",2,"#2","雙打賽",2,"#2","雙打賽",2,"#2",null,null,null,null,null,null,null,null,null,null,null,null,null,null,null,"15人制",15,null,null,null,null,null,null,null,"團體賽(男)",4,"#2","雙人賽",2,"#2","雙人賽",2,"#2","雙人賽",2,"#2","雙人賽",2,"#2","團隊競速賽(高男)",3,"#2","競技成隊",5,"#2","品勢混雙賽",2,"#2",null,null,null,null,null,null,null,null,null,null,null,null,"團體賽",4,"#2","對練",2,"#2","混雙賽",2,"#2","混雙賽",2,"#2",null,null,null,null,null,null,null,null,null,null,null,null,null,null,null,"雙人賽",2,"#2","接力賽",4,"#2"]
[97,"高中組","三重區","東海高中",null,"高中組",3,3,"體操",null,null,null,null,null,null,null,null,null,null,null,null,null,null,null,null,null,"游泳",null,null,"跳遠",1,"#1","200公尺自由式",1,"#1","團體賽",7,"#2","團體賽",7,"#2","團體賽",4,"#2","團體賽",5,"#2",null,null,null,null,null,null,null,null,null,null,null,null,null,null,null,null,null,null,null,null,null,null,null,null,"團體賽(女)",3,"#2","三人賽",3,"#2","四人賽",4,"#2","四人賽",4,"#2",null,null,null,"團隊競速賽(非高男)",2,"#2","韻律成隊",5,"#2","品勢團體賽",3,"#2",null,null,null,null,null,null,null,null,null,null,null,null,null,null,null,null,null,null,"團體賽",3,"#2","團體賽",3,"#2",null,null,null,null,null,null,null,null,null,null,null,null,null,null,null,"團體賽",4,"#2"]
[98,"高中組","三重區","清傳高商",null,"國男組",null,null,"桌球",null,null,null,null,null,null,null,null,null,null,null,null,null,null,null,null,null,"113年全國中等學校運動會",null,null,"三級跳遠",1,"#1","400公尺自由式",1,"#1",null,null,null,null,null,null,null,null,null,null,null,null,null,null,null,null,null,null,null,null,null,null,null,null,null,null,null,null,null,null,null,null,null,null,null,null,null,null,null,"四人賽",4,"#2","八人賽",9,"#2",null,null,null,null,null,null,"4公里團隊追逐賽",4,"#2","韻律團隊全能",5,"#2"]
[99,"高中組","三重區","新北高中",null,"國女組",null,null,"羽球",null,null,null,null,null,null,null,null,null,null,null,null,null,null,null,null,null,null,null,null,"推鉛球",1,"#1","800公尺自由式",1,"#1"]
[100,"高中組","三重區","穀保家商",null,"國中組",null,null,"網球",null,null,null,null,null,null,null,null,null,null,null,null,null,null,null,null,null,"體操",null,null,"擲鐵餅",1,"#1","1500公尺自由式",1,"#1"]
[101,"高中組","三鶯區","樹人家商",null,null,null,null,"軟式網球",null,null,null,null,null,null,null,null,null,null,null,null,null,null,null,null,null,"113年全國中等學校運動會",null,null,"擲標槍",1,"#1","50公尺仰式",1,"#1"]
[102,"高中組","三鶯區","鶯歌工商",null,null,null,null,"柔道",null,null,null,null,null,null,null,null,null,null,null,null,null,null,null,null,null,null,null,null,"擲鏈球",1,"#1","100公尺仰式",1,"#1"]
[103,"高中組","文山區","南強工商",null,null,null,null,"角力",null,null,null,null,null,null,null,null,null,null,null,null,null,null,null,null,null,"羽球",null,null,"壘球擲遠",1,"#1","200公尺仰式",1,"#1"]
[104,"高中組","文山區","能仁家商",null,null,null,null,"跆拳道",null,null,null,null,null,null,null,null,null,null,null,null,null,null,null,null,null,"113年全國中等學校運動會",null,null,"100公尺",1,"#1","50公尺蛙式",1,"#1"]
[105,"高中組","文山區","莊敬高職",null,null,null,null,"空手道",null,null,null,null,null,null,null,null,null,null,null,null,null,null,null,null,null,null,null,null,"200公尺",1,"#1","100公尺蛙式",1,"#1"]
[106,"高中組","文山區","開明工商",null,null,null,null,"拳擊",null,null,null,null,null,null,null,null,null,null,null,null,null,null,null,null,null,"桌球",null,null,"400公尺",1,"#1","200公尺蛙式",1,"#1"]
[107,"高中組","文山區","新店高中",null,null,null,null,"射箭",null,null,null,null,null,null,null,null,null,null,null,null,null,null,null,null,null,"113年全國中等學校運動會",null,null,"800公尺",1,"#1","50公尺蝶式",1,"#1"]
[108,"高中組","板橋區","中華高中",null,null,null,null,"舉重",null,null,null,null,null,null,null,null,null,null,null,null,null,null,null,null,null,null,null,null,"1500公尺",1,"#1","100公尺蝶式",1,"#1"]
[109,"高中組","板橋區","光華商職",null,null,null,null,"射擊",null,null,null,null,null,null,null,null,null,null,null,null,null,null,null,null,null,"網球",null,null,"3000公尺",1,"#1","200公尺蝶式",1,"#1"]
[110,"高中組","板橋區","板橋高中",null,null,null,null,"划船",null,null,null,null,null,null,null,null,null,null,null,null,null,null,null,null,null,"113年全國中等學校運動會",null,null,"5000公尺",1,"#1","200公尺混合式",1,"#1"]
[111,"高中組","板橋區","華僑中學",null,null,null,null,"輕艇",null,null,null,null,null,null,null,null,null,null,null,null,null,null,null,null,null,null,null,null,"10000公尺",1,"#1","400公尺混合式",1,"#1"]
[112,"高中組","板橋區","新北高工",null,null,null,null,"擊劍",null,null,null,null,null,null,null,null,null,null,null,null,null,null,null,null,null,"軟式網球",null,null,"100公尺跨欄",1,"#1","4x100公尺自由式接力",4,"#2"]
[113,"高中組","板橋區","豫章工商",null,null,null,null,"自由車",null,null,null,null,null,null,null,null,null,null,null,null,null,null,null,null,null,"113年全國中等學校運動會",null,null,"110公尺跨欄",1,"#1","4x200公尺自由式接力",4,"#2"]
[114,"高中組","淡水區","淡水商工",null,null,null,null,"競速滑輪溜冰",null,null,null,null,null,null,null,null,null,null,null,null,null,null,null,null,null,null,null,null,"400公尺跨欄",1,"#1","4x100公尺混合式接力",4,"#2"]
[115,"高中組","新莊區","林口高中",null,null,null,null,"木球",null,null,null,null,null,null,null,null,null,null,null,null,null,null,null,null,null,"跆拳道",null,null,"3000公尺障礙",1,"#1"]
[116,"高中組","新莊區","泰山高中",null,null,null,null,"籃球",null,null,null,null,null,null,null,null,null,null,null,null,null,null,null,null,null,"113年全國中等學校運動會",null,null,"5000公尺競走",1,"#1"]
[117,"高中組","新莊區","新莊高中",null,null,null,null,"排球",null,null,null,null,null,null,null,null,null,null,null,null,null,null,null,null,null,null,null,null,"10000公尺競走",1,"#1"]
[118,"高中組","瑞芳區","瑞芳高工",null,null,null,null,"足球",null,null,null,null,null,null,null,null,null,null,null,null,null,null,null,null,null,"柔道",null,null,"混合運動(全能)",1,"#1"]
[119,"高中組","雙和區","中和高中",null,null,null,null,"壘球",null,null,null,null,null,null,null,null,null,null,null,null,null,null,null,null,null,"113年全國中等學校運動會",null,null,"4x100公尺接力",4,"#2"]
[120,"高中組","雙和區","復興商工",null,null,null,null,"棒球",null,null,null,null,null,null,null,null,null,null,null,null,null,null,null,null,null,null,null,null,"4x400公尺接力",4,"#2"]
[121,"高中組","雙和區","智光商工",null,null,null,null,"武術",null,null,null,null,null,null,null,null,null,null,null,null,null,null,null,null,null,"角力"]
[90,"國中小","七星區","青山國中小",null,null,null,null,null,null,null,null,null,null,null,null,null,null,null,null,null,null,null,null,null,null,"113年全國中等學校運動會"]
[91,"國中小","三鶯區","桃子腳國中小"]
[92,"國中小","文山區","烏來國中小",null,null,null,null,null,null,null,null,null,null,null,null,null,null,null,null,null,null,null,null,null,null,"空手道"]
[93,"國中小","文山區","達觀國中小",null,null,null,null,null,null,null,null,null,null,null,null,null,null,null,null,null,null,null,null,null,null,"113年全國中等學校運動會"]
[94,"國中小","瑞芳區","豐珠中學"]
[33,"國中組","七星區","汐止國中",null,null,null,null,null,null,null,null,null,null,null,null,null,null,null,null,null,null,null,null,null,null,"拳擊"]
[34,"國中組","七星區","萬里國中",null,null,null,null,null,null,null,null,null,null,null,null,null,null,null,null,null,null,null,null,null,null,"113年全國中等學校運動會"]
[35,"國中組","三重區","二重國中"]
[36,"國中組","三重區","三和國中",null,null,null,null,null,null,null,null,null,null,null,null,null,null,null,null,null,null,null,null,null,null,"射擊"]
[37,"國中組","三重區","光榮國中",null,null,null,null,null,null,null,null,null,null,null,null,null,null,null,null,null,null,null,null,null,null,"113年全國中等學校運動會"]
[38,"國中組","三重區","明志國中"]
[39,"國中組","三重區","碧華國中",null,null,null,null,null,null,null,null,null,null,null,null,null,null,null,null,null,null,null,null,null,null,"射箭"]
[40,"國中組","三重區","蘆洲國中",null,null,null,null,null,null,null,null,null,null,null,null,null,null,null,null,null,null,null,null,null,null,"113年全國中等學校運動會"]
[41,"國中組","三重區","鷺江國中"]
[42,"國中組","三鶯區","三多國中",null,null,null,null,null,null,null,null,null,null,null,null,null,null,null,null,null,null,null,null,null,null,"舉重"]
[43,"國中組","三鶯區","三峽國中",null,null,null,null,null,null,null,null,null,null,null,null,null,null,null,null,null,null,null,null,null,null,"113年全國中等學校運動會"]
[44,"國中組","三鶯區","安溪國中"]
[45,"國中組","三鶯區","尖山國中",null,null,null,null,null,null,null,null,null,null,null,null,null,null,null,null,null,null,null,null,null,null,"划船"]
[46,"國中組","三鶯區","育林國中",null,null,null,null,null,null,null,null,null,null,null,null,null,null,null,null,null,null,null,null,null,null,"113年全國中等學校運動會"]
[47,"國中組","三鶯區","柑園國中"]
[48,"國中組","三鶯區","鳳鳴國中",null,null,null,null,null,null,null,null,null,null,null,null,null,null,null,null,null,null,null,null,null,null,"輕艇"]
[49,"國中組","三鶯區","鶯歌國中",null,null,null,null,null,null,null,null,null,null,null,null,null,null,null,null,null,null,null,null,null,null,"113年全國中等學校運動會"]
[50,"國中組","文山區","五峰國中"]
[51,"國中組","文山區","文山國中",null,null,null,null,null,null,null,null,null,null,null,null,null,null,null,null,null,null,null,null,null,null,"自由車"]
[52,"國中組","文山區","坪林國中",null,null,null,null,null,null,null,null,null,null,null,null,null,null,null,null,null,null,null,null,null,null,"113年全國中等學校運動會"]
[53,"國中組","文山區","深坑國中"]
[54,"國中組","板橋區","土城國中",null,null,null,null,null,null,null,null,null,null,null,null,null,null,null,null,null,null,null,null,null,null,"擊劍"]
[55,"國中組","板橋區","大觀國中",null,null,null,null,null,null,null,null,null,null,null,null,null,null,null,null,null,null,null,null,null,null,"113年全國中等學校運動會"]
[56,"國中組","板橋區","中山國中"]
[57,"國中組","板橋區","中正國中",null,null,null,null,null,null,null,null,null,null,null,null,null,null,null,null,null,null,null,null,null,null,"競速滑輪溜冰"]
[58,"國中組","板橋區","江翠國中",null,null,null,null,null,null,null,null,null,null,null,null,null,null,null,null,null,null,null,null,null,null,"113年全國中等學校運動會"]
[59,"國中組","板橋區","忠孝國中"]
[60,"國中組","板橋區","板橋國中",null,null,null,null,null,null,null,null,null,null,null,null,null,null,null,null,null,null,null,null,null,null,"木球"]
[61,"國中組","板橋區","重慶國中",null,null,null,null,null,null,null,null,null,null,null,null,null,null,null,null,null,null,null,null,null,null,"113年全國中等學校運動會"]
[62,"國中組","板橋區","新埔國中"]
[63,"國中組","板橋區","溪崑國中",null,null,null,null,null,null,null,null,null,null,null,null,null,null,null,null,null,null,null,null,null,null,"排球"]
[64,"國中組","淡水區","三芝國中",null,null,null,null,null,null,null,null,null,null,null,null,null,null,null,null,null,null,null,null,null,null,"112學年度高中排球甲級聯賽"]
[65,"國中組","淡水區","正德國中",null,null,null,null,null,null,null,null,null,null,null,null,null,null,null,null,null,null,null,null,null,null,"112學年度國中排球甲級聯賽"]
[66,"國中組","淡水區","石門國中"]
[67,"國中組","淡水區","淡水國中",null,null,null,null,null,null,null,null,null,null,null,null,null,null,null,null,null,null,null,null,null,null,"足球"]
[68,"國中組","新莊區","八里國中",null,null,null,null,null,null,null,null,null,null,null,null,null,null,null,null,null,null,null,null,null,null,"112學年度中等學校足球聯賽11人制"]
[69,"國中組","新莊區","中平國中"]
[70,"國中組","新莊區","五股國中",null,null,null,null,null,null,null,null,null,null,null,null,null,null,null,null,null,null,null,null,null,null,"壘球"]
[71,"國中組","新莊區","佳林國中",null,null,null,null,null,null,null,null,null,null,null,null,null,null,null,null,null,null,null,null,null,null,"112學年度全國中小學女子壘球聯賽國中甲組"]
[72,"國中組","新莊區","林口國中",null,null,null,null,null,null,null,null,null,null,null,null,null,null,null,null,null,null,null,null,null,null,"112學年度全國中小學女子壘球聯賽高中組"]
[73,"國中組","新莊區","泰山國中"]
[74,"國中組","新莊區","崇林國中",null,null,null,null,null,null,null,null,null,null,null,null,null,null,null,null,null,null,null,null,null,null,"棒球"]
[75,"國中組","新莊區","新泰國中",null,null,null,null,null,null,null,null,null,null,null,null,null,null,null,null,null,null,null,null,null,null,"112學年度高中棒球聯賽木棒組"]
[76,"國中組","新莊區","新莊國中",null,null,null,null,null,null,null,null,null,null,null,null,null,null,null,null,null,null,null,null,null,null,"112學年度國中棒球硬式組聯賽"]
[77,"國中組","新莊區","義學國中"]
[78,"國中組","新莊區","福營國中",null,null,null,null,null,null,null,null,null,null,null,null,null,null,null,null,null,null,null,null,null,null,"籃球"]
[79,"國中組","新莊區","頭前國中",null,null,null,null,null,null,null,null,null,null,null,null,null,null,null,null,null,null,null,null,null,null,"112學年度高中籃球甲級聯賽"]
[80,"國中組","瑞芳區","平溪國中",null,null,null,null,null,null,null,null,null,null,null,null,null,null,null,null,null,null,null,null,null,null,"112學年度國民中學籃球聯賽"]
[81,"國中組","瑞芳區","貢寮國中"]
[82,"國中組","瑞芳區","欽賢國中",null,null,null,null,null,null,null,null,null,null,null,null,null,null,null,null,null,null,null,null,null,null,"武術"]
[83,"國中組","瑞芳區","瑞芳國中",null,null,null,null,null,null,null,null,null,null,null,null,null,null,null,null,null,null,null,null,null,null,"113年全國中等學校運動會"]
[84,"國中組","雙和區","中和國中"]
[85,"國中組","雙和區","永和國中"]
[86,"國中組","雙和區","自強國中"]
[87,"國中組","雙和區","漳和國中"]
[88,"國中組","雙和區","福和國中"]
[89,"國中組","雙和區","積穗國中"]
[1,"綜合高中","七星區","秀峰高中"]
[2,"綜合高中","七星區","金山高中"]
[3,"綜合高中","七星區","崇義高中"]
[4,"綜合高中","七星區","樟樹高中"]
[5,"綜合高中","三重區","三民高中"]
[6,"綜合高中","三重區","三重高中"]
[7,"綜合高中","三重區","金陵女中"]
[8,"綜合高中","三重區","徐匯高中"]
[9,"綜合高中","三重區","格致高中"]
[10,"綜合高中","三鶯區","北大高中"]
[11,"綜合高中","三鶯區","明德高中"]
[12,"綜合高中","三鶯區","樹林高中"]
[13,"綜合高中","三鶯區","辭修高中"]
[14,"綜合高中","文山區","及人高中"]
[15,"綜合高中","文山區","石碇高中"]
[16,"綜合高中","文山區","安康高中"]
[17,"綜合高中","文山區","崇光女中"]
[18,"綜合高中","板橋區","光仁中學"]
[19,"綜合高中","板橋區","光復高中"]
[20,"綜合高中","板橋區","海山高中"]
[21,"綜合高中","板橋區","清水高中"]
[22,"綜合高中","淡水區","竹圍高中"]
[23,"綜合高中","新莊區","丹鳳高中"]
[24,"綜合高中","新莊區","恆毅中學"]
[25,"綜合高中","新莊區","聖心女中"]
[26,"綜合高中","新莊區","醒吾高中"]
[27,"綜合高中","瑞芳區","時雨高中"]
[28,"綜合高中","瑞芳區","雙溪高中"]
[29,"綜合高中","雙和區","永平高中"]
[30,"綜合高中","雙和區","竹林高中"]
[31,"綜合高中","雙和區","南山中學"]
[32,"綜合高中","雙和區","錦和高中"]
[334,"綜合高中","文山區","康橋高中"]
[336,"綜合高中","板橋區","裕德高中"]
[338,"綜合高中","淡水區","淡江高中"]
[340,"綜合高中","新莊區","林口康橋高中"]